bitfinex-derivatives/quotes_ETHF0:USTF0_20250602
["timestamp","ask_amount","ask_price","bid_price","bid_amount"]
[1748869672528,1.40205,2495.6,2495.5,4.04399758]
[1748869672734,0.601,2495.6,2495.5,9.84507758]
[1748869673131,0.601,2495.6,2495.5,12.20708457]
[1748869673838,0.601,2495.6,2495.5,10.76659564]
[1748869674142,0.601,2495.6,2495.5,12.20605121]
[1748869674529,0.601,2495.6,2495.5,9.84404422]
[1748869674731,1.40205,2495.6,2495.5,9.04296422]
[1748869674936,1.40205,2495.6,2495.5,4.04296422]
[1748869676230,0.601,2495.6,2495.5,4.04296422]
[1748869676438,2.00207,2496.3,2495.5,11.04566422]
[1748869676737,0.80092,2496.1,2496.0,3.2078]
[1748869677040,0.80092,2496.1,2496.0,7.36097557]
[1748869677240,18.499,2496.4,2496.0,6.56005557]
[1748869677434,0.80086,2496.2,2496.1,2.70305557]
[1748869678537,0.80086,2496.2,2496.1,1.2636]
[1748869679646,0.80086,2496.2,2496.1,1.9223]
[1748869679844,0.80089,2496.1,2496.0,3.2078]
[1748869680040,1.48129,2496.1,2496.0,3.2078]
[1748869681543,1.48129,2496.1,2496.0,4.5539]
[1748869681944,1.48129,2496.1,2496.0,5.35482]
[1748869682545,1.48129,2496.1,2496.0,4.5539]
[1748869682740,1.48129,2496.1,2496.0,5.35482]
[1748869683847,1.48129,2496.1,2496.0,6.7918059]
[1748869684349,19.97829,2496.1,2496.0,6.7918059]
[1748869684646,19.97829,2496.1,2496.0,6.79179889]
[1748869684847,19.97829,2496.1,2496.0,5.35482]
[1748869686045,19.97829,2496.1,2496.0,4.5539]
[1748869686544,19.29689,2496.1,2496.0,3.2078]
[1748869687847,20.58469,2496.1,2496.0,3.2078]
[1748869689346,20.58469,2496.1,2495.7,0.6797]
[1748869689347,0.80099,2495.8,2495.7,3.2078]
[1748869690148,2.72499,2495.8,2495.7,3.2078]
[1748869691142,0.80105,2495.6,2495.5,8.65e-06]
[1748869692456,0.80105,2495.6,2495.5,1.37670865]
[1748869695448,0.80105,2495.6,2495.5,8.65e-06]
[1748869697467,19.29705,2495.6,2495.5,8.65e-06]
[1748869697960,0.80105,2495.6,2495.5,2.78617402]
[1748869699360,1.40045,2495.6,2495.5,2.78617402]
[1748869700567,1.40045,2495.6,2495.5,2.78580631]
[1748869701766,1.40045,2495.6,2495.5,1.44000631]
[1748869704777,1.40045,2495.6,2495.5,8.65e-06]
[1748869705370,19.89545,2495.6,2495.5,2.77254349]
[1748869707176,1.40045,2495.6,2495.5,3.57362349]
[1748869707367,0.5994,2495.6,2495.5,3.57362349]
[1748869707569,19.89545,2495.6,2495.5,3.57362349]
[1748869707863,19.89545,2495.6,2495.5,2.77254349]
[1748869708267,19.89545,2495.6,2495.5,3.57362349]
[1748869708676,19.89545,2495.6,2495.5,3.57433523]
[1748869709673,19.89545,2495.6,2495.5,2.77325523]
[1748869709875,19.89545,2495.6,2495.5,3.57433523]
[1748869711476,1.40045,2495.6,2495.5,3.57433523]
[1748869712670,1.40045,2495.6,2495.5,2.77325523]
[1748869712868,1.40045,2495.6,2495.5,2.77378724]
[1748869713666,1.40045,2495.6,2495.5,3.57486724]
[1748869713871,0.5994,2495.6,2495.5,3.57486724]
[1748869714067,19.89345,2495.6,2495.5,1.44168724]
[1748869714666,19.89345,2495.6,2495.5,2.24276724]
[1748869714877,19.89345,2495.6,2495.5,3.54156724]
[1748869715575,1.40045,2495.6,2495.5,3.54156724]
[1748869715777,19.89345,2495.6,2495.5,2.74048724]
[1748869716276,19.89345,2495.6,2495.5,3.54156724]
[1748869716470,19.89345,2495.6,2495.5,2.74048724]
[1748869716671,19.89345,2495.6,2495.5,3.92505937]
[1748869716871,19.89345,2495.6,2495.5,3.92734427]
[1748869717072,19.89345,2495.6,2495.5,2.74173627]
[1748869717674,19.89345,2495.6,2495.5,3.92734427]
[1748869717877,19.89345,2495.6,2495.5,7.13514427]
[1748869718078,19.89345,2495.6,2495.5,7.93622427]
[1748869718767,19.89345,2495.6,2495.5,5.83827238]
[1748869718971,19.89345,2495.6,2495.5,3.20780865]
[1748869719173,19.89345,2495.6,2495.5,1.44405514]
[1748869720482,19.89345,2495.6,2495.5,1.44452239]
[1748869721074,23.89445,2495.6,2495.5,1.44451439]
[1748869722876,23.89445,2495.6,2495.5,8.65e-06]
[1748869723084,23.89445,2495.6,2495.5,1.44438213]
[1748869723481,23.89445,2495.6,2495.5,8.65e-06]
[1748869723881,28.89445,2495.6,2495.5,8.65e-06]
[1748869727579,23.89445,2495.6,2495.5,8.65e-06]
[1748869737992,28.89445,2495.6,2495.5,8.65e-06]
[1748869738184,4.00569,2495.4,2494.8,0.6379]
[1748869738385,0.80127,2494.9,2494.8,0.6379]
[1748869738583,19.29327,2494.9,2494.8,2.08087388]
[1748869738792,19.29327,2494.9,2494.8,3.37247388]
[1748869740398,19.29327,2494.9,2494.8,1.9295]
[1748869741090,19.89297,2494.9,2494.8,1.9295]
[1748869743195,19.89297,2494.9,2494.8,3.37133642]
[1748869743591,19.89297,2494.9,2494.8,1.9295]
[1748869743890,19.89297,2494.9,2494.8,3.37141171]
[1748869745998,19.89297,2494.9,2494.8,1.44191171]
[1748869746192,0.80134,2494.7,2494.6,0.00600865]
[1748869746391,0.80134,2494.7,2494.6,2.70112044]
[1748869747196,0.80134,2494.7,2494.6,1.25900865]
[1748869747498,1.45154,2494.7,2494.6,1.25900865]
[1748869749200,1.45154,2494.7,2494.6,0.00600865]
[1748869750088,1.45154,2494.7,2494.6,1.30660865]
[1748869751496,5.45154,2494.7,2494.6,0.00600865]
[1748869752001,6.76604,2494.7,2494.6,0.00600865]
[1748869752988,6.76604,2494.7,2494.6,8.65e-06]
[1748869753402,2.00371,2494.3,2493.9,0.6816]
[1748869753694,2.00343,2494.6,2493.7,1.58259962]
[1748869753695,0.80163,2493.8,2493.7,6.12e-06]
[1748869753898,8.00943,2493.8,2493.7,6.12e-06]
[1748869754399,0.80179,2493.3,2493.2,1.2814]
[1748869757002,0.80182,2493.2,2493.1,3.8671]
[1748869757508,1.40342,2493.2,2493.1,3.8671]
[1748869757800,0.80192,2492.9,2492.8,4.5737]
[1748869758001,19.29792,2492.9,2492.8,4.5737]
[1748869758810,19.29792,2492.9,2492.8,1.3659]
[1748869763006,19.30192,2492.9,2492.8,1.3659]
[1748869763191,19.30192,2492.9,2492.5,3.2078]
[1748869763192,18.5,2492.9,2492.5,3.2078]
[1748869763393,0.80214,2492.2,2492.1,1.3613]
[1748869763600,0.80217,2492.1,2492.0,0.6611]
[1748869763805,19.30117,2492.1,2492.0,0.6611]
[1748869764100,19.30117,2492.1,2491.8,1.3613]
[1748869764305,0.80224,2491.9,2491.8,1.3613]
[1748869764893,19.30324,2491.9,2491.8,1.3613]
[1748869765093,18.501,2492.1,2491.8,6.3613]
[1748869765301,19.30317,2492.1,2492.0,3.2078]
[1748869767401,0.80217,2492.1,2492.0,3.2078]
[1748869767609,19.30317,2492.1,2492.0,3.2078]
[1748869767907,0.80217,2492.1,2492.0,3.2078]
[1748869768095,19.30617,2492.1,2492.0,3.2078]
[1748869769701,0.80217,2492.1,2492.0,3.2078]
[1748869769902,0.80217,2492.1,2492.0,8.2078]
[1748869770308,0.80217,2492.1,2492.0,3.2078]
[1748869771105,0.80217,2492.1,2492.0,5.1173]
[1748869773610,0.80217,2492.1,2492.0,3.2078]
[1748869773813,2.17877,2492.1,2492.0,3.2078]
[1748869774008,2.17877,2492.1,2492.0,0.964]
[1748869774605,0.80217,2492.1,2492.0,0.964]
[1748869775409,19.30817,2492.1,2492.0,1.7662]
[1748869775912,19.30817,2492.1,2492.0,2.0716]
[1748869776109,19.30817,2492.1,2492.0,1.2694]
[1748869777013,20.51148,2492.1,2491.7,3.2078]
[1748869777214,0.80227,2491.8,2491.7,3.2078]
[1748869777413,0.80227,2491.8,2491.7,4.63712943]
[1748869777714,19.30927,2491.8,2491.7,4.63712943]
[1748869778409,19.30927,2491.8,2491.7,3.2078]
[1748869779413,19.30927,2491.8,2491.7,4.63917777]
[1748869782612,19.30927,2491.8,2491.7,1.43137777]
[1748869783515,0.8023,2491.7,2491.6,2.27679962]
[1748869783710,1.4042,2491.7,2491.6,1.43733291]
[1748869784216,1.4042,2491.7,2491.6,3.82226253]
[1748869784420,19.9132,2491.7,2491.6,3.01993253]
[1748869785326,19.9132,2491.7,2491.6,1.43733291]
[1748869788916,1.4042,2491.7,2491.6,1.43733291]
[1748869789223,19.9142,2491.7,2491.6,1.43733291]
[1748869791219,19.9142,2491.7,2491.6,3.01993253]
[1748869791419,19.9142,2491.7,2491.6,1.44053634]
[1748869792120,19.9142,2491.7,2491.6,3.02313596]
[1748869793919,21.269,2491.7,2491.6,3.02313596]
[1748869795328,21.269,2491.7,2491.6,1.58259962]
[1748869795514,21.269,2491.7,2491.6,3.02421449]
[1748869796218,19.9142,2491.7,2491.6,3.02421449]
[1748869796622,19.9142,2491.7,2491.6,1.44161487]
[1748869797927,21.2161,2491.7,2491.6,1.44161487]
[1748869798418,19.9152,2491.7,2491.6,1.44161487]
[1748869798614,19.9152,2491.7,2491.6,4.39341449]
[1748869800731,19.9152,2491.7,2491.6,2.81081487]
[1748869800924,19.9152,2491.7,2491.6,4.3980951]
[1748869801230,19.9152,2491.7,2491.6,2.81081487]
[1748869801531,19.9152,2491.7,2491.6,4.39859068]
[1748869802032,19.9152,2491.7,2491.6,4.39979664]
[1748869806032,1.4042,2491.7,2491.6,6.82305143]
[1748869806231,19.9152,2491.7,2491.6,9.01639262]
[1748869806434,1.4042,2491.7,2491.6,9.01639262]
[1748869806633,19.9152,2491.7,2491.6,5.80859262]
[1748869806829,19.9152,2491.7,2491.6,4.40254401]
[1748869807326,19.9152,2491.7,2491.6,2.81292143]
[1748869807730,19.9152,2491.7,2491.6,1.44372143]
[1748869808939,19.9152,2491.7,2491.6,1.45253125]
[1748869809844,19.9152,2491.7,2491.6,0.00880982]
[1748869810027,19.9152,2491.7,2491.6,1.45276506]
[1748869810640,1.4042,2491.7,2491.6,1.45276506]
[1748869810834,19.9142,2491.7,2491.6,0.00880982]
[1748869811035,19.9142,2491.7,2491.6,2.71842541]
[1748869812537,23.122,2491.7,2491.6,1.44922541]
[1748869813529,4.612,2491.7,2491.6,1.44922541]
[1748869813736,27.123,2491.7,2491.6,1.44922541]
[1748869813935,27.123,2491.7,2491.6,2.64198871]
[1748869816236,27.123,2491.7,2491.6,1.44922541]
[1748869816842,27.123,2491.7,2491.6,0.50419541]
[1748869817140,0.8024,2491.4,2491.3,1.1927633]
[1748869817348,0.80243,2491.3,2491.2,1.1927633]
[1748869817640,0.80243,2491.3,2491.1,1.58936511]
[1748869817641,0.80246,2491.2,2491.1,1.1927633]
[1748869817840,0.80253,2491.0,2490.9,1.58936511]
[1748869818045,19.31253,2491.0,2490.9,1.58936511]
[1748869818540,19.31253,2491.0,2490.9,2.94026511]
[1748869818742,19.31253,2491.0,2490.9,1.3509]
[1748869818937,19.31353,2491.0,2490.9,1.3509]
[1748869819345,19.91563,2491.0,2490.9,1.3509]
[1748869819547,19.91563,2491.0,2490.9,2.54304115]
[1748869819752,1.40463,2491.0,2490.9,2.54304115]
[1748869819953,19.91563,2491.0,2490.9,1.3509]
[1748869820161,19.91563,2491.0,2490.9,2.5430275]
[1748869821750,1.40463,2491.0,2490.9,2.5430275]
[1748869821958,19.91663,2491.0,2490.9,2.54243753]
[1748869822258,19.91663,2491.0,2490.9,2.54235076]
[1748869822558,19.91663,2491.0,2490.9,1.3509]
[1748869823152,19.91663,2491.0,2490.9,2.5421763]
[1748869823660,1.40463,2491.0,2490.9,2.5421763]
[1748869823957,19.91663,2491.0,2490.9,2.5421763]
[1748869824852,19.91663,2491.0,2490.9,3.3447363]
[1748869825861,1.40463,2491.0,2490.9,2.15346]
[1748869826057,19.91663,2491.0,2490.9,2.15346]
[1748869826958,19.91663,2491.0,2490.9,1.3509]
[1748869826959,1.40463,2491.0,2490.9,1.3509]
[1748869827256,19.91663,2491.0,2490.9,2.54164434]
[1748869828859,19.91663,2491.0,2490.9,3.96717876]
[1748869829553,19.91663,2491.0,2490.9,2.61627876]
[1748869829957,0.80259,2490.8,2490.7,4.30736511]
[1748869830158,0.80259,2490.8,2490.7,5.73293404]
[1748869830750,0.80259,2490.8,2490.7,2.70706893]
[1748869830947,0.80259,2490.8,2490.7,2.61667072]
[1748869831151,0.80259,2490.8,2490.7,1.42556893]
[1748869832063,8.01039,2490.8,2490.7,1.42556893]
[1748869832357,9.94869,2490.8,2490.7,1.42556893]
[1748869832555,9.94869,2490.8,2490.4,1.19110179]
[1748869832556,0.80269,2490.5,2490.4,1.19110179]
[1748869832755,0.80272,2490.4,2490.3,1.19110179]
[1748869832953,0.80272,2490.4,2490.3,2.61619465]
[1748869833258,4.80272,2490.4,2490.3,1.42509286]
[1748869833660,0.80278,2490.2,2490.1,3.2078]
[1748869833862,3.8521,2490.5,2490.1,3.2078]
[1748869834061,0.80275,2490.3,2490.2,2.22755301]
[1748869834359,19.31574,2490.4,2490.2,2.80478301]
[1748869834562,18.513,2490.4,2490.3,2.2982309]
[1748869834748,18.513,2490.4,2490.3,3.6782309]
[1748869834749,19.31572,2490.4,2490.3,3.6782309]
[1748869834953,19.31572,2490.4,2490.3,2.8754809]
[1748869835364,19.31572,2490.4,2490.3,3.6782309]
[1748869835663,19.31572,2490.4,2490.3,3.60753301]
[1748869835959,19.31572,2490.4,2490.3,2.80478301]
[1748869836655,19.31572,2490.4,2490.3,1.42478301]
[1748869836856,0.80278,2490.2,2490.1,4.5878]
[1748869837053,0.80278,2490.2,2490.1,6.01127322]
[1748869837957,19.31678,2490.2,2490.1,6.01104401]
[1748869838758,19.31678,2490.2,2490.1,4.63104401]
[1748869839461,19.31678,2490.2,2490.1,4.63097648]
[1748869840164,19.31678,2490.2,2490.1,5.96117648]
[1748869840767,5.44038,2490.3,2490.2,0.80278]
[1748869840962,0.80278,2490.2,2490.1,5.34079]
[1748869841162,0.80278,2490.2,2490.1,5.4334786]
[1748869841666,1.40508,2490.2,2490.1,5.4334786]
[1748869841966,1.40508,2490.2,2490.1,5.43355255]
[1748869842174,1.40508,2490.2,2490.1,4.63076255]
[1748869843668,1.40508,2490.2,2490.1,4.70146044]
[1748869843969,19.92108,2490.2,2490.1,4.70146044]
[1748869845481,19.92108,2490.2,2490.1,5.50427044]
[1748869845767,19.92108,2490.2,2490.1,5.43357255]
[1748869847473,19.92108,2490.2,2490.1,2.22577255]
[1748869848968,1.40508,2490.2,2490.1,5.43357255]
[1748869849163,19.92208,2490.2,2490.1,5.43357255]
[1748869849669,19.92208,2490.2,2490.1,5.50427044]
[1748869850072,19.92208,2490.2,2490.1,5.50581362]
[1748869850775,19.92208,2490.2,2490.1,5.43511573]
[1748869851870,19.92208,2490.2,2490.1,5.50581362]
[1748869852970,19.92208,2490.2,2490.1,5.43511573]
[1748869853173,19.92208,2490.2,2490.1,4.63230573]
[1748869853373,19.92208,2490.2,2490.1,5.43512573]
[1748869853568,1.40508,2490.2,2490.1,5.43512573]
[1748869853768,19.92208,2490.2,2490.1,5.50582362]
[1748869853969,1.40508,2490.2,2490.1,5.50582362]
[1748869854170,19.92208,2490.2,2490.1,5.50677094]
[1748869854668,0.6023,2490.2,2490.1,5.50677094]
[1748869854868,0.6023,2490.2,2490.1,12.79904424]
[1748869855075,1e-05,2490.2,2490.1,10.43607305]
[1748869855375,1e-05,2490.2,2490.1,47.63607305]
[1748869856779,0.00602083,2490.7,2490.6,0.80265]
[1748869856978,18.52302083,2490.7,2490.6,7.02308903]
[1748869857172,18.52302083,2490.7,2490.6,7.70318903]
[1748869857374,18.52302083,2490.7,2490.6,44.90318903]
[1748869857568,18.52302083,2490.7,2490.6,43.31600305]
[1748869857873,0.00602083,2490.7,2490.6,46.89055]
[1748869858074,0.00602083,2490.7,2490.6,50.69636109]
[1748869859076,0.00602083,2490.7,2490.6,48.31558211]
[1748869860278,0.00602083,2490.7,2490.6,49.61148211]
[1748869860575,0.00602083,2490.7,2490.6,52.78585408]
[1748869860986,0.00602083,2490.7,2490.6,51.36082197]
[1748869861281,8.3e-07,2490.7,2490.6,52.78507695]
[1748869861574,1.2815,2491.7,2490.8,2.00645]
[1748869861575,1.46506,2491.6,2490.8,2.00645]
[1748869861777,0.6627,2491.6,2491.5,0.80236]
[1748869861970,19.1767,2491.6,2491.5,2.22661498]
[1748869862166,0.80229,2491.8,2491.7,0.80226]
[1748869862364,0.8023,2491.7,2491.6,2.08491]
[1748869862575,0.8023,2491.7,2491.6,3.50693821]
[1748869862771,18.514,2491.8,2491.6,2.70462821]
[1748869862977,18.514,2491.8,2491.7,0.8023]
[1748869862978,19.31629,2491.8,2491.7,0.8023]
[1748869863980,0.8023,2491.7,2491.6,2.08491]
[1748869866973,19.7929,2491.8,2491.5,0.00602083]
[1748869866974,0.80233,2491.6,2491.5,0.00602083]
[1748869867168,2.83173,2491.6,2491.5,0.00602083]
[1748869868474,25.35773,2491.6,2491.5,0.00602083]
[1748869873182,2.0294,2491.6,2491.5,0.80838083]
[1748869873383,19.1973,2491.6,2491.5,0.80838083]
[1748869874285,19.99963,2491.6,2491.5,0.80838083]
[1748869874479,0.6873,2491.6,2491.5,4.01618083]
[1748869874679,0.80228,2491.8,2491.7,0.80227]
[1748869874881,19.31228,2491.8,2491.7,0.80227]
[1748869876385,19.31528,2491.8,2491.7,0.80227]
[1748869876579,0.80228,2491.8,2491.7,0.80227]
[1748869876779,19.31428,2491.8,2491.7,0.80227]
[1748869877888,18.512,2491.8,2491.7,0.80227]
[1748869878381,0.6019,2491.9,2491.8,0.80227]
[1748869878586,0.6019,2491.9,2491.8,5.4303078]
[1748869878987,0.6019,2491.9,2491.8,43.9488078]
[1748869879684,0.6019,2491.9,2491.8,52.9468078]
[1748869880084,0.6019,2491.9,2491.8,54.52784928]
[1748869880283,0.6019,2491.9,2491.8,54.52715071]
[1748869880884,0.6019,2491.9,2491.8,55.02715071]
[1748869882489,0.6019,2491.9,2491.8,50.02715071]
[1748869884191,0.6019,2491.9,2491.8,48.60761148]
[1748869884394,0.6019,2491.9,2491.8,50.02926285]
[1748869884780,0.6019,2491.9,2491.8,48.44822137]
[1748869885396,0.6019,2491.9,2491.8,50.03297453]
[1748869888192,0.6019,2491.9,2491.8,50.03500098]
[1748869888786,1e-05,2491.9,2491.8,48.45024782]
[1748869888994,1e-05,2491.9,2491.8,53.45024782]
[1748869889195,0.00602083,2492.0,2491.9,0.80224]
[1748869889395,0.00602083,2492.0,2491.9,6.55404658]
[1748869889593,0.00602083,2492.0,2491.9,11.55404658]
[1748869889796,0.00602083,2492.0,2491.9,48.75404658]
[1748869890593,0.00602083,2492.0,2491.9,43.75404658]
[1748869890798,0.00602083,2492.0,2491.9,43.75329184]
[1748869890992,0.00602083,2492.0,2491.9,41.37641782]
[1748869891790,0.00602083,2492.0,2491.9,43.7530748]
[1748869891991,0.00602083,2492.0,2491.9,44.2530748]
[1748869892392,0.00602083,2492.0,2491.9,44.25313646]
[1748869894197,0.00602083,2492.0,2491.9,41.87641782]
[1748869894399,8.3e-07,2492.0,2491.9,41.87641782]
[1748869894601,8.3e-07,2492.1,2492.0,0.8022]
[1748869894798,8.3e-07,2492.1,2492.0,11.78324979]
[1748869895003,18.502,2492.7,2492.6,0.80201]
[1748869895200,0.6662,2492.8,2492.7,0.80198]
[1748869895398,19.1682,2492.8,2492.7,3.60865782]
[1748869895702,19.1682,2492.8,2492.7,4.7959222]
[1748869896099,19.1682,2492.8,2492.7,4.79261016]
[1748869896504,19.1682,2492.8,2492.7,3.60580993]
[1748869898892,24.97015,2492.8,2492.7,1.42082993]
[1748869899100,24.97015,2492.8,2492.6,0.802]
[1748869899101,0.80198,2492.7,2492.6,0.802]
[1748869899292,2.17348,2492.7,2492.6,2.22235853]
[1748869899496,1.3715,2492.7,2492.6,0.802]
[1748869899697,2.17348,2492.7,2492.6,2.22264767]
[1748869899897,2.17348,2492.7,2492.6,0.802]
[1748869900093,2.17348,2492.7,2492.6,2.22263715]
[1748869900306,2.17348,2492.7,2492.6,2.22263478]
[1748869904311,2.17348,2492.7,2492.6,2.2243939]
[1748869907315,20.67148,2492.7,2492.6,2.2243939]
[1748869907515,20.67148,2492.7,2492.6,3.41255344]
[1748869912414,20.67148,2492.7,2492.6,2.22874831]
[1748869912615,20.67148,2492.7,2492.6,3.42054231]
[1748869913219,1.3715,2492.7,2492.6,3.42054231]
[1748869913420,19.8685,2492.7,2492.6,3.42054231]
[1748869913622,20.67048,2492.7,2492.6,3.42054231]
[1748869914019,19.8685,2492.7,2492.6,3.42054231]
[1748869914819,19.8685,2492.7,2492.6,2.22874831]
[1748869915820,0.6662,2492.8,2492.7,0.80198]
[1748869916022,19.1632,2492.8,2492.7,2.22872831]
[1748869916524,19.1632,2492.8,2492.7,2.22924563]
[1748869917025,19.96516,2492.8,2492.7,2.22924563]
[1748869918936,0.6662,2492.8,2492.7,2.22924563]
[1748869919229,0.6662,2492.8,2492.7,3.42134406]
[1748869919422,0.6662,2492.8,2492.7,2.22924563]
[1748869919618,0.65902083,2493.0,2492.7,5.43704563]
[1748869919822,0.65902083,2493.0,2492.9,0.80191]
[1748869920023,0.00602083,2493.0,2492.9,2.22917563]
[1748869920230,0.00602083,2493.0,2492.9,5.14592487]
[1748869920530,0.00602083,2493.0,2492.9,5.15292009]
[1748869920920,0.00602083,2493.0,2492.9,4.21881023]
[1748869921326,0.00602083,2493.0,2492.9,9.21881023]
[1748869922131,0.00602083,2493.0,2492.9,9.71881023]
[1748869922536,0.00602083,2493.0,2492.9,12.09873872]
[1748869923033,0.00602083,2493.0,2492.9,12.09635308]
[1748869923530,0.00602083,2493.0,2492.9,11.09035308]
[1748869923732,0.00602083,2493.0,2492.9,10.43515308]
[1748869923934,0.66842083,2493.0,2492.9,8.05522459]
[1748869924233,0.66842083,2493.0,2492.9,6.63041]
[1748869924421,0.66842083,2493.0,2492.9,9.24489819]
[1748869924625,0.66842083,2493.0,2492.9,8.05503523]
[1748869925029,0.66842083,2493.0,2492.9,9.64151918]
[1748869925436,0.66842083,2493.0,2492.9,5.64751918]
[1748869925728,0.66842083,2493.0,2492.9,4.31301918]
[1748869925729,1.47030083,2493.0,2492.9,4.31301918]
[1748869925928,2.83220083,2493.0,2492.9,3.11448831]
[1748869926332,7.83220083,2493.0,2492.9,0.5]
[1748869926527,2.83220083,2493.0,2492.9,0.5]
[1748869927533,11.82620083,2493.0,2492.9,0.5]
[1748869928135,0.80204,2492.5,2492.4,3.2078]
[1748869928330,0.80204,2492.5,2492.4,4.63355426]
[1748869928331,19.29404,2492.5,2492.4,4.63355426]
[1748869928731,19.29404,2492.5,2492.4,5.43563426]
[1748869928935,20.55944,2492.5,2492.4,5.43563426]
[1748869929238,19.7574,2492.5,2492.4,5.43563426]
[1748869929437,18.492,2492.5,2492.4,5.43563426]
[1748869929836,0.00602083,2493.0,2492.6,2.00503]
[1748869930033,0.00602083,2493.0,2492.9,0.80191]
[1748869930235,18.49902083,2493.0,2492.9,0.80191]
[1748869930535,19.30090083,2493.0,2492.9,2.22766426]
[1748869930937,18.49902083,2493.0,2492.9,0.80191]
[1748869931132,0.00602083,2493.0,2492.9,3.56665132]
[1748869931338,18.49902083,2493.0,2492.9,3.56665132]
[1748869932343,0.00602083,2493.0,2492.9,3.56665132]
[1748869932545,0.00602083,2493.0,2492.9,4.75731916]
[1748869932941,0.00602083,2493.0,2492.9,3.56665132]
[1748869934847,0.00602083,2493.0,2492.9,3.56670799]
[1748869935044,0.00602083,2493.0,2492.9,5.15319194]
[1748869937849,0.00602083,2493.0,2492.9,5.94663648]
[1748869938243,0.00602083,2493.0,2492.9,3.56670799]
[1748869938549,0.00602083,2493.0,2492.9,5.94678658]
[1748869938751,0.00602083,2493.0,2492.9,43.14576023]
[1748869940840,0.00602083,2493.0,2492.9,6.19345397]
[1748869941152,0.00602083,2493.0,2492.9,3.4167556]
[1748869941747,0.00602083,2493.0,2492.9,2.22648164]
[1748869942044,0.00602083,2493.0,2492.9,5.15367538]
[1748869942651,0.00602083,2493.0,2492.9,5.15440807]
[1748869943248,0.00602083,2493.0,2492.9,5.81630807]
[1748869943848,8.3e-07,2493.0,2492.9,8.22341433]
[1748869944040,8.3e-07,2493.0,2492.9,13.22341433]
[1748869944441,8.3e-07,2493.0,2492.9,8.22341433]
[1748869944647,8.3e-07,2493.0,2492.9,53.58947689]
[1748869944952,8.3e-07,2493.0,2492.9,54.08947689]
[1748869945345,8.3e-07,2493.0,2492.9,49.08947689]
[1748869946553,8.3e-07,2493.0,2492.9,49.08796312]
[1748869948851,8.3e-07,2493.0,2492.9,45.92190056]
[1748869950447,8.3e-07,2493.0,2492.9,49.09189136]
[1748869950649,8.3e-07,2493.0,2492.9,49.09160771]
[1748869950959,8.3e-07,2493.0,2492.9,45.92161691]
[1748869951457,8.3e-07,2493.0,2492.9,49.09141035]
[1748869955160,8.3e-07,2493.0,2492.9,49.0894658]
[1748869958661,8.3e-07,2493.0,2492.9,49.09020189]
[1748869958861,8.3e-07,2493.0,2492.9,45.92040845]
[1748869959571,8.3e-07,2493.0,2492.9,49.09020189]
[1748869960167,8.3e-07,2493.0,2492.9,49.09136813]
[1748869960357,8.3e-07,2493.0,2492.9,45.92157469]
[1748869962762,8.3e-07,2493.0,2492.9,45.92238633]
[1748869963064,8.3e-07,2493.0,2492.9,45.42238633]
[1748869963364,8.3e-07,2493.0,2492.9,49.13018633]
[1748869964365,1.3193,2493.3,2493.2,0.80182]
[1748869964662,1.3193,2493.3,2493.2,5.43389633]
[1748869965766,6.9713,2493.3,2493.2,7.81547921]
[1748869965961,6.9713,2493.3,2493.2,7.02190587]
[1748869966858,6.9713,2493.3,2493.2,7.02278192]
[1748869967367,1.9713,2493.3,2493.2,7.02278192]
[1748869970766,1.9713,2493.3,2493.2,5.59762954]
[1748869971068,1.9713,2493.3,2493.2,7.02304836]
[1748869973269,1.9713,2493.3,2493.2,5.43503882]
[1748869974468,20.4553,2493.3,2493.2,5.43503882]
[1748869975061,20.4553,2493.3,2493.2,5.43588505]
[1748869976367,1.9713,2493.3,2493.2,5.43588505]
[1748869977363,0.6536,2493.4,2493.3,0.80179]
[1748869977566,0.6536,2493.4,2493.3,2.22805505]
[1748869978876,0.6536,2493.4,2493.3,2.22784745]
[1748869979075,0.6536,2493.4,2493.3,3.60954745]
[1748869979775,0.6536,2493.4,2493.3,4.10954745]
[1748869981573,8.3e-07,2493.5,2493.4,0.80175]
[1748869981782,8.3e-07,2493.5,2493.4,2.8684987]
[1748869981969,8.3e-07,2493.5,2493.4,4.2405987]
[1748869982169,21.2506,2494.2,2494.1,0.80153]
[1748869982370,2.7676,2494.2,2494.1,7.02281048]
[1748869983383,2.7676,2494.2,2494.1,2.2274787]
[1748869983577,2.7676,2494.2,2494.1,3.41707199]
[1748869983882,2.7676,2494.2,2494.1,2.2274787]
[1748869984682,2.7676,2494.2,2494.1,3.41701275]
[1748869985179,3.5691,2494.2,2494.1,2.61548275]
[1748869985383,3.5691,2494.2,2494.0,1.99091306]
[1748869985384,0.80153,2494.1,2494.0,1.99091306]
[1748869985586,2.09843,2494.1,2494.0,3.41386709]
[1748869985785,2.09843,2494.1,2494.0,2.22451403]
[1748869985978,1.2969,2494.1,2494.0,2.22451403]
[1748869989285,1.2969,2494.1,2494.0,0.80156]
[1748869989486,1.2969,2494.1,2494.0,2.22410504]
[1748869991084,2.09843,2494.1,2494.0,2.22410504]
[1748869992482,1.2969,2494.1,2494.0,2.22410504]
[1748869992790,2.09843,2494.1,2494.0,2.22410504]
[1748869993286,2.09843,2494.1,2494.0,0.80156]
[1748869993481,2.09843,2494.1,2494.0,2.22443956]
[1748869995492,2.09843,2494.1,2494.0,1.42287956]
[1748869997391,0.80153,2494.0,2493.9,0.80155]
[1748869997584,2.17163,2494.0,2493.9,2.22498716]
[1748869998288,2.17163,2494.0,2493.9,1.42343716]
[1748869998584,7.17163,2494.0,2493.9,1.42343716]
[1748869999384,2.17163,2494.0,2493.9,2.22500716]
[1748869999591,20.64863,2494.0,2493.9,2.22500716]
[1748870000290,20.64863,2494.0,2493.9,1.42343716]
[1748870001089,20.64863,2494.0,2493.9,2.22499716]
[1748870001490,20.64863,2494.0,2493.9,2.22605019]
[1748870001686,20.64863,2494.0,2493.9,1.42449019]
[1748870003493,2.17163,2494.0,2493.9,2.22606019]
[1748870003791,20.64863,2494.0,2493.9,2.22606019]
[1748870005588,20.64863,2494.0,2493.9,2.22749521]
[1748870006995,0.69,2494.2,2494.1,0.80152]
[1748870007191,19.167,2494.2,2494.1,2.22744521]
[1748870007395,0.69,2494.2,2494.1,2.22744521]
[1748870007597,3.87602083,2494.4,2494.3,0.80145]
[1748870007792,19.14522083,2494.4,2494.3,2.22737521]